bitfinex/quotes_ETHUSD_20260202
["timestamp","ask_amount","ask_price","bid_price","bid_amount"]
[1770045984728,2.42515,2380.1,2378.1,0.001]
[1770045985731,3.561913,2380.1,2378.1,0.001]
[1770045985927,8.939761,2379.9,2378.1,0.001]
[1770045986137,0.881,2379.8,2378.1,0.001]
[1770045986300,0.881,2379.9,2378.1,0.001]
[1770045986500,3.569601,2380.1,2378.1,0.001]
[1770045987007,30.0,2379.0,2376.9,0.001]
[1770045987226,3.028,2379.0,2376.9,0.001]
[1770045987429,2.24270714,2379.6,2376.9,0.001]
[1770045987430,0.881,2379.1,2376.9,0.001]
[1770045988060,0.881,2379.1,2376.9,0.94988796]
[1770045988339,2.780632,2379.6,2377.1,0.96600905]
[1770045988540,2.252322,2379.6,2377.2,2.86161564]
[1770045988749,0.1024,2379.3,2376.9,0.001]
[1770045989035,3.00739,2379.1,2376.9,0.001]
[1770045989341,16.377303,2378.8,2376.9,0.001]
[1770045989649,7.484498,2378.6,2376.9,0.001]
[1770045989798,7.484498,2378.6,2376.0,0.39121543]
[1770045989799,10.879281,2378.1,2376.0,0.39121543]
[1770045990002,10.34859858,2378.2,2376.0,1.0521558]
[1770045990003,5.411716,2377.9,2376.0,1.0521558]
[1770045990198,11.46876866,2378.2,2375.4,1.82988796]
[1770045990199,0.881,2377.8,2375.4,1.82988796]
[1770045990448,12.31079381,2377.5,2375.3,0.001]
[1770045990654,0.1024,2377.3,2375.3,0.001]
[1770045990931,26.38618794,2377.4,2375.3,0.001]
[1770045990932,7.330869,2377.0,2375.3,0.001]
[1770045991137,0.89525395,2377.2,2375.3,0.001]
[1770045991138,9.35126777,2377.7,2375.8,1.05225477]
[1770045991446,0.881,2377.3,2375.3,0.001]
[1770045991756,5.278752,2377.1,2375.3,0.001]
[1770045991898,0.881,2377.2,2375.3,0.001]
[1770045991899,0.99733081,2376.8,2375.3,0.001]
[1770045992232,8.600402,2376.7,2375.3,0.001]
[1770045992436,0.881,2376.7,2375.3,0.001]
[1770045992647,0.1024,2377.2,2375.3,0.001]
[1770045992798,0.882,2376.7,2375.3,0.001]
[1770045993234,10.34859858,2377.2,2375.3,0.001]
[1770045993440,8.144163,2376.8,2375.3,0.001]
[1770045993597,10.552963,2376.7,2375.3,0.001]
[1770045993798,3.993301,2376.5,2374.2,1.05298626]
[1770045994035,0.99733081,2376.8,2374.2,1.05298626]
[1770045994036,1.09973081,2376.6,2374.2,1.05298626]
[1770045994233,19.182031,2376.5,2374.2,1.05298626]
[1770045994502,0.882,2376.5,2374.2,1.05298626]
[1770045994703,9.45366777,2377.0,2374.2,1.05298626]
[1770045994941,2.662,2376.7,2374.2,1.05298626]
[1770045995111,0.882,2376.6,2374.2,1.05298626]
[1770045995438,5.07971,2376.5,2374.2,1.05298626]
[1770045995611,5.642023,2376.5,2374.2,1.05298626]
[1770045995962,0.882,2376.4,2374.2,1.05298626]
[1770045996102,0.882,2376.4,2374.1,1.00878169]
[1770045996103,0.1024,2376.2,2374.1,1.00878169]
[1770045996449,0.1024,2376.2,2374.1,1.0530249]
[1770045996450,7.16751981,2376.1,2374.1,1.0530249]
[1770045996603,4.755877,2375.9,2374.1,1.05302672]
[1770045996805,2.437067,2375.9,2374.1,1.05302672]
[1770045997008,1.12017008,2376.8,2375.5,0.001]
[1770045997240,3.584472,2376.7,2375.5,0.001]
[1770045997552,0.89452095,2376.6,2375.3,0.001]
[1770045997753,2.431622,2377.1,2375.3,0.001]
[1770045997903,0.39827712,2377.4,2375.3,0.94988796]
[1770045998110,0.39827712,2377.4,2375.8,0.94888796]
[1770045998327,0.39827712,2377.4,2376.0,0.94888796]
[1770045998535,0.39827712,2377.4,2376.1,1.84800905]
[1770045998717,0.39827712,2377.4,2376.1,1.83088796]
[1770045998929,0.99733081,2379.0,2376.2,0.96600905]
[1770045999127,0.882,2379.1,2376.5,0.94888796]
[1770045999313,7.034192,2379.2,2376.7,0.94888796]
[1770045999519,12.20597242,2379.6,2377.4,0.96600905]
[1770045999520,0.36634145,2379.6,2377.4,0.96600905]
[1770045999851,0.36634145,2379.6,2377.5,0.882]
[1770046000355,4.256139,2379.5,2377.5,0.882]
[1770046000653,0.36634145,2379.6,2377.5,0.882]
[1770046001397,0.36634145,2379.6,2377.6,1.05148048]
[1770046001544,0.36634145,2379.6,2377.9,0.01712109]
[1770046001889,0.36634145,2379.6,2377.7,0.94888796]
[1770046002271,0.36634145,2379.6,2377.6,1.05148048]
[1770046002493,0.36634145,2379.6,2378.3,0.01712109]
[1770046002641,0.0011,2380.5,2378.1,0.94888796]
[1770046002842,0.0011,2380.5,2378.2,0.96600905]
[1770046003045,0.0011,2380.5,2378.2,0.94888796]
[1770046003341,0.0011,2380.5,2378.3,1.051171]
[1770046003545,0.0011,2380.5,2378.4,0.6204743]
[1770046003800,0.0011,2380.5,2378.0,4.20468401]
[1770046003801,25.23097858,2380.4,2377.7,0.52574024]
[1770046003954,14.342897,2380.1,2377.6,0.94888796]
[1770046004280,0.0011,2380.5,2378.2,1.05121063]
[1770046004466,0.8831,2380.5,2378.3,0.94888796]
[1770046004782,0.8831,2380.5,2378.2,1.05121063]
[1770046004986,2.943268,2380.4,2378.3,0.61380714]
[1770046005156,0.8831,2380.5,2378.2,1.05121063]
[1770046005353,0.8831,2380.5,2378.3,0.94888796]
[1770046005354,0.0011,2380.5,2378.3,0.94888796]
[1770046005966,0.882,2380.4,2378.3,0.94888796]
[1770046006170,0.882,2380.4,2378.3,0.96600905]
[1770046006373,0.0011,2380.5,2378.3,0.96600905]
[1770046006569,0.0011,2380.5,2378.3,0.94888796]
[1770046006776,0.0011,2380.5,2378.3,0.96600905]
[1770046007083,0.0011,2380.5,2378.2,1.05121063]
[1770046007285,2.0947,2380.4,2378.3,0.52560714]
[1770046007582,10.720465,2380.3,2378.3,1.05116549]
[1770046007741,10.34859858,2380.4,2378.3,1.05116549]
[1770046007742,0.882,2380.4,2378.3,1.05116549]
[1770046008146,0.0011,2380.5,2378.4,0.9120116]
[1770046008444,0.0011,2380.5,2378.6,0.92913269]
[1770046008637,0.0011,2380.5,2378.6,0.9120116]
[1770046009045,0.0011,2380.5,2378.3,10.41955435]
[1770046009046,0.0011,2380.5,2379.0,0.92913269]
[1770046009244,0.0011,2380.5,2379.1,0.882]
[1770046009445,0.0011,2380.5,2379.2,1.05077336]
[1770046009678,0.0011,2380.5,2379.3,0.61358668]
[1770046010194,0.0011,2380.5,2379.2,1.05077336]
[1770046010402,12.574837,2380.2,2377.9,0.98958347]
[1770046010680,9.35126777,2380.3,2377.1,1.05169199]
[1770046010681,13.02965444,2379.2,2377.1,1.05169199]
[1770046010889,0.882,2379.1,2376.9,0.1]
[1770046011189,12.41296144,2378.5,2376.9,0.1]
[1770046011348,4.488429,2378.4,2376.9,0.1]
[1770046011544,5.46529944,2378.4,2376.9,0.1]
[1770046011896,4.8387,2378.1,2376.9,0.1]
[1770046012068,5.443464,2377.9,2375.7,1.05229615]
[1770046012241,5.443464,2377.9,2375.7,0.52617186]
[1770046012242,11.694495,2377.6,2375.7,0.52617186]
[1770046012581,0.97687044,2377.7,2375.3,0.001]
[1770046012582,0.3359703,2377.3,2375.3,0.001]
[1770046012896,0.3359703,2377.3,2374.3,0.001]
[1770046012897,9.325285,2376.5,2374.3,0.001]
[1770046013093,6.211618,2376.3,2374.5,1.05284342]
[1770046013384,0.97687044,2376.6,2374.3,0.001]
[1770046013555,1.11687037,2377.3,2374.3,0.001]
[1770046013556,5.254519,2377.0,2374.3,0.001]
[1770046013753,0.2335703,2377.2,2374.3,0.001]
[1770046013754,9.4601,2376.8,2374.3,0.001]
[1770046014078,0.882,2376.9,2374.3,0.001]
[1770046014079,0.2335703,2375.6,2374.3,0.001]
[1770046014287,16.80200044,2375.2,2373.0,1.05349376]
[1770046014444,10.486096,2374.8,2372.4,0.59211337]
[1770046014789,0.882,2374.8,2372.4,0.59211337]
[1770046015004,3.117,2374.7,2372.4,0.59211337]
[1770046015288,0.882,2374.8,2372.4,0.1155849]
[1770046015289,0.2335703,2374.1,2372.4,0.1155849]
[1770046015471,0.3359703,2374.1,2372.4,0.1155849]
[1770046015778,0.2335703,2375.3,2372.4,3.04094086]
[1770046015943,5.358837,2375.2,2372.6,1.00670456]
[1770046016143,0.882,2375.1,2372.8,0.01712109]
[1770046016463,0.1024,2375.5,2372.7,1.00670456]
[1770046016771,2.258821,2375.2,2372.7,1.00670456]
[1770046017141,1.21044074,2375.0,2372.4,0.9975849]
[1770046017344,0.1024,2374.6,2372.4,0.9975849]
[1770046017554,0.1024,2374.5,2372.4,0.9975849]
[1770046017746,11.918318,2374.4,2372.4,0.9975849]
[1770046017948,6.943036,2374.3,2372.4,0.9975849]
[1770046018248,9.885708,2374.1,2372.4,0.1155849]
[1770046018471,3.545687,2374.2,2372.4,0.1155849]
[1770046018673,0.882,2374.4,2372.4,0.1155849]
[1770046019171,6.903151,2374.3,2372.4,0.1155849]
[1770046019585,3.652033,2374.3,2372.4,0.1155849]
[1770046019958,0.3359703,2374.2,2372.4,0.1155849]
[1770046020082,7.627833,2374.1,2372.4,0.1155849]
[1770046020294,6.632134,2373.9,2372.4,0.1155849]
[1770046020604,0.1024,2374.2,2372.4,0.1155849]
[1770046020905,4.199239,2374.0,2372.4,0.1155849]
[1770046021271,0.882,2374.1,2372.2,0.001]
[1770046021272,19.20291644,2373.6,2372.2,0.001]
[1770046021460,1.07927044,2373.1,2371.1,0.001]
[1770046021662,5.664571,2372.5,2371.1,0.001]
[1770046021863,1.31284074,2372.8,2370.4,1.08401983]
[1770046021864,0.1024,2371.8,2370.4,0.0293767]
[1770046022194,0.1024,2371.8,2369.4,0.21970685]
[1770046022195,2.187882,2371.7,2369.4,0.98958347]
[1770046022381,2.187882,2371.7,2369.3,4.22053198]
[1770046022382,0.97687044,2373.2,2370.8,1.05449289]
[1770046022560,4.444076,2372.6,2370.9,0.52724784]
[1770046022765,0.1024,2372.2,2369.3,0.98958347]
[1770046023100,0.883,2372.7,2370.8,1.05449496]
[1770046023101,2.070696,2372.7,2370.8,1.05449496]
[1770046023390,12.730822,2374.3,2372.0,0.01712109]
[1770046023560,13.408638,2374.2,2371.8,1.05405177]
[1770046023759,10.23426777,2374.3,2371.8,1.05405177]
[1770046023760,7.06054,2374.1,2371.8,1.05405177]
[1770046023989,4.902442,2374.0,2371.8,1.05405177]
[1770046024189,0.883,2374.1,2371.7,1.05406997]
[1770046024190,0.1024,2373.7,2371.7,1.05406997]
[1770046024389,0.1024,2373.7,2371.7,1.05409249]
[1770046024390,3.174292,2373.6,2371.7,1.05409249]
[1770046024591,3.174292,2373.6,2370.7,0.01712109]
[1770046024592,9.35126777,2372.5,2370.9,1.05445031]
[1770046024793,9.35126777,2373.1,2369.8,4.21964354]
[1770046024794,0.97687044,2372.1,2369.8,4.21964354]
[1770046024988,1.0,2371.8,2369.8,4.21964354]
[1770046025190,1.0,2371.7,2369.9,0.52745849]
[1770046025399,9.35126777,2372.6,2372.0,0.001]
[1770046025400,1.0,2372.3,2372.0,0.001]
[1770046025580,3.8925,2372.2,2370.0,1.05485232]
[1770046025782,0.9995,2372.1,2369.9,1.58233619]
[1770046025960,0.9995,2371.9,2369.9,1.0548777]
[1770046026601,0.9995,2371.9,2370.8,0.001]
[1770046027099,0.999,2371.7,2370.8,0.001]
[1770046027710,9.35126777,2373.0,2370.8,0.001]
[1770046027711,0.999,2372.4,2370.8,0.001]
[1770046028370,0.999,2372.4,2370.4,0.883]
[1770046028371,0.999,2372.4,2370.1,0.883]
[1770046028698,10.23426777,2373.0,2370.1,0.883]
[1770046028699,0.999,2372.2,2370.1,0.883]
[1770046028902,0.999,2372.1,2369.9,1.05489526]
[1770046029206,0.883,2372.7,2369.9,1.05488289]
[1770046029207,0.999,2371.9,2369.9,1.05488289]
[1770046029373,0.999,2371.5,2369.6,4.21999559]
[1770046029568,0.999,2371.3,2369.4,0.883]
[1770046029769,0.999,2371.1,2369.5,1.05506002]
[1770046030489,0.999,2371.1,2369.5,1.05506277]
[1770046030892,0.999,2371.1,2369.5,1.05506671]
[1770046031093,0.999,2371.1,2369.1,4.22097503]
[1770046031094,0.999,2371.1,2368.9,5.10532193]
[1770046031294,0.999,2371.1,2369.5,1.05505501]
[1770046031495,0.999,2371.1,2369.6,0.52753547]
[1770046031664,0.999,2371.1,2369.0,1.05529759]
[1770046031870,0.999,2371.1,2369.2,0.01712109]
[1770046032069,0.999,2371.1,2369.0,1.05529759]
[1770046032691,0.999,2371.1,2369.1,0.01712109]
[1770046032891,0.999,2371.1,2369.0,1.93929759]
[1770046033119,0.999,2371.1,2369.1,0.6160488]
[1770046033511,0.999,2371.1,2369.2,1.0552085]
[1770046033820,0.999,2371.1,2369.3,0.884]
[1770046034501,0.999,2371.1,2369.3,0.90112109]
[1770046034715,0.999,2372.1,2369.9,0.01712109]
[1770046035022,0.999,2372.1,2369.6,9.35126777]
[1770046035213,0.999,2372.1,2370.0,0.884]
[1770046035392,0.999,2372.1,2370.1,1.05480781]
[1770046035594,0.999,2371.9,2370.1,1.05480781]
[1770046035789,0.999,2371.7,2370.0,1.054834]
[1770046037025,0.884,2372.8,2369.7,0.93512678]
[1770046037026,0.999,2371.5,2369.7,0.93512678]
[1770046037323,0.999,2371.3,2368.7,0.90112109]
[1770046037531,0.999,2371.3,2369.0,1.07241868]
[1770046037929,0.999,2371.1,2369.0,1.05529759]
[1770046038103,0.999,2370.8,2369.0,1.05529759]
[1770046038424,0.1024,2371.8,2369.3,0.01712109]
[1770046038425,0.999,2371.7,2369.3,0.01712109]
[1770046038625,0.999,2371.5,2369.8,0.001]
[1770046039299,0.999,2371.5,2369.9,0.884]
[1770046039510,0.999,2371.5,2370.0,1.05485232]
[1770046040099,0.999,2371.5,2369.9,1.05487391]
[1770046040424,0.999,2371.5,2370.0,0.52754612]
[1770046040726,0.999,2371.5,2369.9,1.05488526]
[1770046041319,0.999,2371.5,2369.9,1.05488853]
[1770046041539,0.999,2371.5,2369.8,0.001]
[1770046041830,0.999,2371.3,2369.8,0.001]
[1770046042398,0.999,2371.1,2369.8,0.001]
[1770046042598,0.999,2370.9,2369.8,0.001]
[1770046043233,0.999,2371.5,2369.8,0.001]
[1770046043431,0.999,2371.5,2369.8,1.05594134]
[1770046044004,0.999,2371.5,2369.8,0.001]
[1770046044204,0.999,2371.1,2369.8,0.001]
[1770046044430,1.10523208,2371.6,2369.5,0.001]
[1770046044431,0.999,2370.7,2369.5,0.001]
[1770046044618,0.9985,2370.5,2369.5,0.001]
[1770046046642,1.49103239,2371.1,2369.5,0.001]
[1770046046643,0.9985,2370.3,2369.5,0.001]
[1770046047027,2.585017,2370.2,2369.5,0.001]
[1770046047226,0.998,2370.0,2368.6,0.001]
[1770046047546,0.998,2370.0,2368.6,1.0564758]
[1770046047750,0.998,2370.0,2368.7,0.5368586]
[1770046048253,1.49103239,2370.6,2369.2,0.01712109]
[1770046048254,1.10523208,2370.5,2369.2,0.01712109]
[1770046048455,0.998,2371.1,2369.2,0.884]
[1770046048639,2.299,2370.9,2368.7,0.5368586]
[1770046048842,2.10323208,2371.1,2368.7,1.4208586]
[1770046048843,0.90324684,2370.8,2368.7,1.4208586]
[1770046049047,0.90324684,2370.7,2368.8,0.24773344]
[1770046049361,0.90324684,2370.7,2368.7,1.4208586]
[1770046049362,1.10523208,2370.3,2368.7,0.884]
[1770046049542,0.90324684,2370.2,2368.8,1.05538669]
[1770046049725,0.998,2370.2,2368.8,1.05538669]
[1770046050069,0.998,2370.0,2368.6,0.001]
[1770046050243,0.90445269,2369.9,2368.7,1.05542624]
[1770046050443,0.90445269,2369.9,2368.5,4.31223932]
[1770046050444,0.998,2369.7,2368.5,0.09020693]
[1770046050775,17.21861108,2369.8,2367.7,0.1145849]
[1770046050776,0.9954764,2368.9,2367.7,0.1145849]
[1770046050934,0.9954764,2368.7,2367.7,0.1145849]
[1770046051133,1.10523208,2368.9,2367.7,0.1145849]
[1770046051134,0.9954764,2368.5,2367.7,0.1145849]
[1770046051372,2.20386496,2369.2,2367.7,0.1145849]
[1770046051373,3.59174087,2369.1,2367.7,1.17042535]
[1770046051567,2.20386496,2369.4,2367.7,0.1145849]
[1770046051568,8.070773,2368.9,2367.7,0.1145849]
[1770046051732,8.070773,2368.9,2366.3,0.001]
[1770046051733,0.9954764,2368.1,2366.9,0.22074604]
[1770046051936,0.9954764,2368.1,2366.3,0.001]
[1770046051937,0.9954764,2367.5,2366.3,0.001]
[1770046052230,5.195124,2367.6,2366.0,0.001]
[1770046052231,0.9954764,2366.9,2366.0,0.001]
[1770046052431,2.10070848,2367.6,2366.3,1.05649425]
[1770046052666,2.20386496,2368.0,2366.0,0.001]
[1770046052667,0.9954764,2367.4,2366.0,0.001]
[1770046052865,1.10523208,2367.9,2366.0,0.001]
[1770046052866,0.9954764,2367.2,2366.0,0.001]
[1770046053070,0.9954764,2367.2,2366.3,1.05649898]
[1770046053375,0.9954764,2367.9,2366.3,1.05649898]
[1770046053531,0.9954764,2367.9,2366.4,0.52825058]
[1770046053736,0.9954764,2367.9,2366.0,0.001]
[1770046054171,0.35853297,2368.2,2366.8,0.01712109]
[1770046054354,0.35853297,2368.2,2366.2,0.01712109]
[1770046054355,1.35400937,2368.2,2366.0,0.01812109]
[1770046054557,1.35400937,2368.2,2366.0,0.001]
[1770046054558,0.9954764,2368.1,2366.0,0.001]
[1770046054872,0.9954764,2367.3,2366.0,0.001]
[1770046055158,0.9954764,2367.5,2366.0,0.001]
[1770046055587,0.35853297,2368.2,2366.0,0.001]
[1770046055588,1.35400937,2368.2,2366.0,0.001]
[1770046055733,0.9954764,2368.1,2366.0,0.001]
[1770046055931,0.9954764,2368.1,2364.5,1.05727561]
[1770046055932,0.9954764,2366.5,2364.5,1.05727561]
[1770046056164,0.9954764,2366.2,2365.3,1.0569208]
[1770046056351,0.9954764,2366.8,2365.7,1.05672795]
[1770046056554,1.35483663,2367.2,2365.0,0.885]
[1770046056870,0.9954764,2366.7,2365.0,0.885]
[1770046057164,0.9954764,2366.7,2365.1,0.01712109]
[1770046057588,0.9954764,2366.7,2365.0,0.885]
[1770046057737,0.9954764,2366.7,2364.7,0.01712109]
[1770046058297,0.9954764,2366.7,2364.4,1.95947022]
[1770046058298,0.9954764,2366.8,2364.4,0.40262109]
[1770046058445,0.01712109,2365.7,2364.4,0.40262109]
[1770046059141,0.01712109,2365.7,2363.6,0.09020693]
[1770046059341,0.9954764,2366.0,2363.6,0.09020693]
[1770046059342,0.01712109,2365.3,2363.9,4.23028406]
[1770046059650,0.01712109,2365.9,2363.8,1.05761908]
[1770046059865,0.01712109,2365.9,2363.9,1.66124795]
[1770046060074,0.9954764,2366.1,2364.0,0.01712109]
[1770046060263,0.9954764,2365.9,2363.8,1.05761908]
[1770046060465,0.9954764,2365.9,2363.9,1.41552527]
[1770046060873,0.9954764,2365.9,2364.0,0.01712109]
[1770046061171,0.9954764,2365.9,2363.9,1.41552527]
[1770046061579,0.9954764,2365.9,2364.0,1.05752961]
[1770046061786,0.9954764,2366.7,2364.3,0.1024]
[1770046061942,0.9954764,2366.7,2364.5,0.1024]
[1770046062145,0.9954764,2366.5,2364.3,0.9620184]
[1770046062381,0.9954764,2366.5,2364.4,0.90312109]
[1770046062543,0.9954764,2366.3,2364.4,0.886]
[1770046062744,0.9954764,2366.3,2364.5,2.21360959]
[1770046062992,1.49103239,2368.2,2364.5,2.21360959]
[1770046062993,0.9954764,2367.8,2365.1,2.18869797]
[1770046063299,0.9954764,2367.8,2365.9,0.01712109]
[1770046063581,0.9954764,2367.8,2366.1,1.05659101]
[1770046063743,0.9954764,2367.8,2366.0,1.9426305]
[1770046063944,0.9954764,2367.8,2366.1,0.61693453]
[1770046064146,0.07246423,2367.2,2366.1,0.61693453]
[1770046064345,0.02246423,2367.2,2366.1,0.61693453]
[1770046064885,1.02246423,2367.2,2365.1,2.17157688]
[1770046065092,1.02246423,2367.2,2365.9,1.05665235]
[1770046065380,0.0011,2366.5,2365.7,1.05674081]
[1770046065545,0.0011,2366.5,2365.4,4.22760699]
[1770046065753,0.0011,2366.5,2365.5,0.01712109]
[1770046065950,0.0011,2366.5,2365.5,0.53016764]
[1770046066152,0.0011,2366.5,2365.3,1.05694837]
[1770046066644,1.0,2368.6,2366.2,0.01712109]
[1770046066851,0.0011,2367.7,2365.9,0.01712109]
[1770046067147,0.0011,2367.7,2366.0,0.886]
[1770046067148,1.0011,2367.7,2366.0,0.886]
[1770046067348,1.0011,2367.7,2366.4,0.01712109]
[1770046067571,1.0011,2367.7,2366.1,1.05659101]
[1770046067881,1.0,2367.5,2365.5,1.05683227]
[1770046068082,1.0,2367.5,2364.7,0.01712109]
[1770046068083,1.0,2367.3,2365.1,4.22811431]
[1770046068251,1.0,2367.3,2365.8,1.05669647]
[1770046068450,1.0,2367.1,2366.0,1.05662521]
[1770046069177,0.0011,2367.7,2366.0,1.05662521]
[1770046069178,1.0011,2367.7,2366.0,1.05662521]
[1770046070377,1.0,2367.5,2366.0,1.05662521]
[1770046070559,1.0,2367.5,2366.1,0.61691679]
[1770046071155,1.0,2367.3,2365.9,1.05665916]
[1770046071350,0.0011,2367.7,2364.7,0.01712109]
[1770046071351,1.0,2366.7,2364.7,0.01712109]
[1770046071555,1.0,2367.5,2365.6,4.22719442]
[1770046071771,1.0,2367.5,2366.0,0.01712109]
[1770046071980,1.0,2367.5,2365.7,0.52840534]
[1770046072605,1.0,2367.5,2365.5,1.94285901]
[1770046073153,0.0011,2367.7,2366.2,0.01712109]
[1770046073454,0.0011,2367.7,2366.3,1.05650171]
[1770046073963,0.0011,2367.7,2366.4,0.886]
[1770046074157,0.0011,2367.7,2366.8,0.01712109]
[1770046074667,0.0011,2367.7,2366.6,0.01712109]
[1770046074978,0.0011,2367.7,2366.7,0.1024]
[1770046075194,0.0011,2367.7,2366.3,1.0736228]
[1770046075351,0.0011,2367.7,2366.4,1.41596296]
[1770046075558,0.0011,2367.7,2366.6,0.01712109]
[1770046076255,0.45523789,2369.4,2366.6,0.01712109]
[1770046076256,1.0,2369.1,2367.2,0.01712109]
[1770046076480,1.0,2368.9,2366.6,0.11952109]
[1770046076675,1.0,2368.9,2367.3,0.886]
[1770046077175,1.0,2368.9,2367.4,0.01712109]
[1770046077376,1.0,2368.9,2367.5,0.886]
[1770046077580,1.0,2368.9,2367.6,1.0559216]
[1770046077810,1.0,2368.9,2367.7,0.6165608]
[1770046079200,0.0011,2368.9,2368.0,0.01712109]
[1770046079385,0.35283789,2369.4,2368.0,0.01712109]
[1770046079585,0.35283789,2369.4,2368.1,1.05569866]
[1770046079889,0.0011,2369.1,2368.1,1.05569866]
[1770046080090,0.0011,2369.1,2368.2,0.52956144]
[1770046080308,0.35283789,2369.4,2368.3,0.886]
[1770046080885,0.35283789,2369.4,2368.0,4.23991573]
[1770046080886,0.98977557,2369.4,2368.0,1.05571088]
[1770046081197,10.5217161,2370.1,2368.0,1.05571088]
[1770046081198,0.98977557,2370.0,2368.0,1.05571088]
[1770046081397,0.98977557,2369.7,2368.1,0.52787248]
[1770046081607,0.98977557,2369.3,2367.9,1.05578479]
[1770046081784,0.98977557,2369.8,2367.9,1.05578479]
[1770046081984,0.98977557,2369.6,2368.0,0.886]
[1770046082302,0.90072734,2369.7,2367.6,4.22365064]
[1770046082303,0.98977557,2369.4,2367.6,4.22365064]
[1770046082506,0.98977557,2369.4,2366.8,0.01712109]
[1770046082507,0.98977557,2369.2,2367.9,1.05577291]
[1770046082705,0.98977557,2369.2,2367.6,1.05589753]
[1770046082905,0.98977557,2369.2,2367.3,0.886]
[1770046083104,0.98977557,2369.2,2367.8,1.05582257]
[1770046083303,0.98977557,2369.2,2367.8,1.0558209]
[1770046083613,0.98977557,2369.2,2367.8,1.58374846]
[1770046083778,0.98977557,2369.2,2367.8,1.05580259]
[1770046083984,0.98977557,2369.2,2367.7,1.05585934]
[1770046084316,0.98977557,2369.2,2367.8,1.05583096]
[1770046084483,0.98977557,2369.2,2367.8,1.05581939]
[1770046084685,0.98977557,2368.8,2366.4,0.52996296]
[1770046084885,0.98977557,2368.8,2367.6,4.22366467]
[1770046085183,0.98977557,2368.6,2367.1,4.22446711]
[1770046085386,0.98977557,2368.6,2367.4,1.05597646]
[1770046085693,0.98977557,2368.6,2366.6,1.15876778]
[1770046085889,0.98977557,2369.3,2366.8,0.11952109]
[1770046086118,0.98977557,2369.1,2366.8,0.11952109]
[1770046086417,0.98977557,2369.1,2367.1,0.01712109]
[1770046086587,0.98977557,2369.1,2367.2,0.885]
[1770046087486,0.98977557,2369.1,2366.7,0.35309139]
[1770046087687,0.98977557,2369.1,2367.1,1.05614464]
[1770046089028,0.98977557,2368.9,2367.1,1.05614464]
[1770046089197,0.98977557,2368.9,2367.1,1.94114464]
[1770046089387,0.98977557,2368.9,2367.0,1.05615976]
[1770046089388,0.98977557,2368.5,2367.0,1.05615976]
[1770046089583,0.98977557,2368.5,2367.0,1.58425177]
[1770046091196,0.98977557,2368.5,2367.0,0.52809201]
[1770046091411,0.98977557,2368.0,2366.5,1.05640357]
[1770046091610,1.20763208,2368.1,2366.0,0.885]
[1770046091611,0.98977557,2367.8,2366.0,0.885]
[1770046091813,0.98977557,2367.8,2366.1,1.56774707]
[1770046092121,1.89410114,2367.7,2366.1,1.56774707]
[1770046092307,0.90523433,2367.6,2366.1,1.56774707]
[1770046092510,2.09500765,2368.1,2366.1,1.56774707]
[1770046092825,0.98977557,2367.9,2366.2,0.885]
[1770046092997,0.98977557,2367.8,2366.3,0.24527471]
[1770046093198,0.90512548,2367.7,2366.3,0.24527471]
[1770046094021,0.90512548,2367.7,2366.4,1.05645706]
[1770046094810,1.89490105,2367.7,2366.3,1.30175049]
[1770046094990,0.90517288,2367.6,2366.3,1.30175049]
[1770046095191,0.98977557,2367.7,2366.4,0.64138657]
[1770046095490,0.90541185,2367.6,2366.4,0.64138657]
[1770046095690,0.98977557,2367.7,2366.3,1.05649577]
[1770046095921,1.89517296,2367.6,2366.3,1.05649577]
[1770046096120,0.98977557,2367.6,2366.3,1.05649577]
[1770046096294,1.10523208,2368.0,2366.3,1.05649577]
[1770046096617,0.9056963,2367.9,2366.3,1.05649577]
[1770046096917,2.09500765,2368.2,2366.4,0.61685026]
[1770046097093,0.90560002,2368.1,2366.4,0.61685026]
[1770046097294,0.90560002,2368.0,2366.4,0.61685026]
[1770046097490,0.90560002,2368.0,2366.0,4.22600684]
[1770046097491,0.98977557,2367.3,2365.5,0.001]
[1770046097691,0.98977557,2367.3,2366.2,1.05653384]
[1770046097692,0.90560002,2367.2,2366.2,1.05653384]
[1770046097936,0.90560002,2367.2,2365.7,4.22806455]
[1770046097937,0.98977557,2367.3,2365.8,0.01712109]
[1770046098100,1.10523208,2367.7,2366.1,0.01712109]
[1770046098291,1.10523208,2368.0,2366.4,0.01712109]
[1770046098494,0.90597312,2367.9,2365.9,0.1024]
[1770046098700,0.90597312,2367.8,2366.5,0.886]
[1770046098903,0.90597312,2367.7,2366.5,0.886]
[1770046099113,1.10523208,2368.0,2366.5,0.886]
[1770046099898,0.90611605,2367.9,2366.8,1.05627851]
[1770046100123,3.19364053,2368.5,2366.8,1.05627851]
[1770046100124,2.09500765,2368.5,2366.8,1.05627851]
[1770046101126,0.98977557,2368.5,2366.8,1.05627851]
[1770046101331,1.10633208,2368.9,2367.2,0.01712109]
[1770046101499,0.0011,2368.9,2367.5,0.01712109]
[1770046101700,0.0011,2368.9,2367.6,0.886]
[1770046102122,0.0011,2368.9,2367.7,1.05587701]
[1770046102431,0.0011,2368.9,2367.8,0.6165385]
[1770046102729,0.0011,2369.1,2367.8,0.6165385]
[1770046103042,0.0011,2369.1,2367.9,0.886]
[1770046103331,0.0011,2369.1,2367.5,4.2237279]
[1770046103332,0.99388522,2368.7,2366.7,4.22522127]
[1770046103645,1.10523208,2368.3,2367.3,1.05603194]
[1770046103802,1.10523208,2368.3,2367.4,1.05600809]
[1770046104001,1.10523208,2368.4,2367.4,1.05600809]
[1770046104248,1.49103239,2368.5,2367.0,4.22474442]
[1770046104249,1.10523208,2368.5,2367.0,4.22474442]
[1770046104396,1.10523208,2368.5,2366.9,1.05623389]
[1770046104397,1.10523208,2368.4,2367.1,0.52809783]
[1770046104601,1.10523208,2368.5,2366.9,1.05623389]
[1770046104898,1.10523208,2368.5,2366.9,1.07335498]
[1770046105301,1.10523208,2368.6,2366.9,1.07335498]
[1770046105530,1.10523208,2368.5,2366.9,1.07335498]
[1770046105930,2.0991173,2368.7,2366.9,1.05623389]